fUST/lending_fUST_20250717
["ID","MTS","AMOUNT","RATE_DAILY","PERIOD"]
[372795228,1752765055367,-460.0,0.00019806,2]
[372795230,1752765055376,-3565.14,0.00019806,2]
[372795232,1752765055386,-460.0,0.00019806,2]
[372795234,1752765055396,-460.0,0.00019806,2]
[372795236,1752765055405,-494.71,0.00019806,2]
[372795238,1752765055415,-460.0,0.00019806,2]
[372795240,1752765055425,-2523.44,0.00019806,2]
[372795242,1752765055435,-1798.7,0.00019806,2]
[372795244,1752765055445,-626.96,0.00019806,2]
[372795246,1752765055454,-460.0,0.00019806,2]
[372795248,1752765055465,-460.0,0.00019806,2]
[372795250,1752765055475,-460.0,0.00019806,2]
[372795252,1752765055484,-1969.0,0.00019806,2]
[372795254,1752765055494,-487.99,0.00019806,2]
[372795256,1752765055504,-1290.34,0.00019806,2]
[372795258,1752765055513,-460.0,0.00019806,2]
[372795260,1752765055522,-1366.78,0.00019806,2]
[372795262,1752765055531,-1222.62,0.00019806,2]
[372795264,1752765055540,-460.0,0.00019806,2]
[372795266,1752765055550,-460.0,0.00019806,2]
[372795268,1752765055559,-460.0,0.00019807,2]
[372795270,1752765055569,-4279.38,0.00019807,2]
[372795272,1752765055578,-1326.6,0.00019807,2]
[372795274,1752765055588,-460.0,0.00019807,2]
[372795276,1752765055597,-460.0,0.00019808,2]
[372795278,1752765055606,-460.0,0.00019808,2]
[372795280,1752765055615,-460.0,0.00019808,2]
[372795282,1752765055626,-460.0,0.00019808,2]
[372795284,1752765055636,-460.0,0.00019808,2]
[372795286,1752765055645,-3110.26,0.00019808,2]
[372795288,1752765055655,-460.0,0.00019808,2]
[372795290,1752765055665,-495.25,0.00019809,2]
[372795292,1752765055674,-1328.67,0.00019809,2]
[372795295,1752765055685,-2293.05,0.00019809,2]
[372795297,1752765055695,-460.0,0.00019809,2]
[372795299,1752765055705,-2090.37,0.00019809,2]
[372795301,1752765055717,-1246.01,0.00019809,2]
[372795303,1752765055727,-460.0,0.0001981,2]
[372795305,1752765055736,-460.0,0.0001981,2]
[372795307,1752765055745,-539.65977616,0.0001981,2]
[372795308,1752765055754,-460.0,0.0001981,2]
[372795310,1752765055764,-522.01,0.0001981,2]
[372795313,1752765055773,-460.0,0.0001981,2]
[372795315,1752765055783,-184.0,0.00019829,3]
[372795317,1752765055793,-500.0,0.00019831,2]
[372795319,1752765055802,-501.97751132,0.00019831,2]
[372795321,1752765055812,-500.0,0.00019831,2]
[372795323,1752765055821,-505.05020048,0.00019831,2]
[372795325,1752765055831,-500.0,0.00019831,2]
[372795327,1752765055841,-500.0,0.00019831,2]
[372795329,1752765055851,-800.0,0.00019865,2]
[372795331,1752765055860,-500.0,0.00019881,2]
[372795333,1752765055871,-500.0,0.00019908,2]
[372795335,1752765055880,-500.0,0.00019908,2]
[372795337,1752765055890,-1000.0,0.00019921,2]
[372795339,1752765055899,-1000.0,0.00019921,2]
[372795341,1752765055909,-560.0,0.00019982,2]
[372795343,1752765055918,-522.01,0.00019999,2]
[372795345,1752765055928,-14300.23978458,0.0002,2]
[372795347,1752765055937,-300.0,0.0002,2]
[372795349,1752765055947,-151.0,0.00020022,2]
[372795351,1752765055956,-151.0,0.00020022,2]
[372795353,1752765055968,-151.0,0.00020022,2]
[372795355,1752765055979,-151.0,0.00020022,2]
[372795357,1752765055988,-151.0,0.00020022,2]
[372795359,1752765055998,-152.694333,0.00020022,2]
[372795361,1752765056007,-207.4,0.00020022,2]
[372795363,1752765056018,-151.0,0.00020022,2]
[372795365,1752765056027,-151.0,0.00020022,2]
[372795367,1752765056037,-151.0,0.00020022,2]
[372795369,1752765056047,-151.0,0.00020022,2]
[372795371,1752765056057,-151.0,0.00020022,2]
[372795373,1752765056067,-151.0,0.00020022,2]
[372795375,1752765056076,-151.0,0.00020022,2]
[372795377,1752765056085,-151.0,0.00020022,2]
[372795379,1752765056095,-151.0,0.00020022,2]
[372795381,1752765056104,-151.0,0.00020022,2]
[372795383,1752765056114,-3801.642,0.00020022,2]
[372795385,1752765056123,-151.0,0.00020022,2]
[372795387,1752765056133,-151.0,0.00020022,2]
[372795388,1752765056142,-151.0,0.00020022,2]
[372795390,1752765056151,-151.0,0.00020022,2]
[372795392,1752765056160,-151.0,0.00020022,2]
[372795394,1752765056170,-151.0,0.00020022,2]
[372795396,1752765056179,-151.0,0.00020022,2]
[372795398,1752765056188,-151.0,0.00020022,2]
[372795400,1752765056198,-151.0,0.00020022,2]
[372795402,1752765056207,-151.0,0.00020022,2]
[372795404,1752765056217,-151.0,0.00020022,2]
[372795406,1752765056227,-151.0,0.00020022,2]
[372795408,1752765056236,-151.0,0.00020022,2]
[372795410,1752765056246,-151.0,0.00020022,2]
[372795412,1752765056255,-151.0,0.00020022,2]
[372795413,1752765056265,-151.0,0.00020022,2]
[372795415,1752765056274,-151.0,0.00020022,2]
[372795417,1752765056283,-151.0,0.00020022,2]
[372795419,1752765056293,-151.0,0.00020022,2]
[372795421,1752765056303,-159.14388846,0.00020022,2]
[372795423,1752765056312,-151.0,0.00020022,2]
[372795425,1752765056322,-151.0,0.00020022,2]
[372795427,1752765056331,-25000.0,0.00020022,2]
[372795429,1752765056341,-8833.26437907,0.00020072,2]
[372795431,1752765056350,-3942.302754,0.00020077,2]
[372795433,1752765056360,-573.18,0.0002008,2]
[372795435,1752765056369,-381.92,0.0002008,2]
[372795437,1752765056379,-3565.14,0.0002008,2]
[372795439,1752765056389,-460.0,0.0002008,2]
[372795441,1752765056398,-494.71,0.0002008,2]
[372795443,1752765056408,-460.0,0.0002008,2]
[372795444,1752765056417,-2523.44,0.0002008,2]
[372795446,1752765056427,-1798.7,0.0002008,2]
[372795448,1752765056437,-626.96,0.0002008,2]
[372795450,1752765056446,-460.0,0.0002008,2]
[372795452,1752765056455,-460.0,0.0002008,2]
[372795454,1752765056467,-229.07,0.0002008,2]
[372795456,1752765056477,-1969.0,0.0002008,2]
[372795458,1752765056487,-487.99,0.0002008,2]
[372795460,1752765056496,-1290.34,0.0002008,2]
[372795462,1752765056506,-1366.78,0.0002008,2]
[372795464,1752765056515,-460.0,0.0002008,2]
[372795466,1752765056524,-1222.62,0.0002008,2]
[372795468,1752765056534,-460.0,0.0002008,2]
[372795470,1752765056544,-460.0,0.0002008,2]
[372795472,1752765056553,-460.0,0.00020081,2]
[372795474,1752765056563,-4279.38,0.00020081,2]
[372795476,1752765056572,-1326.6,0.00020081,2]
[372795478,1752765056581,-460.0,0.00020081,2]
[372795479,1752765056591,-460.0,0.00020082,2]
[372795481,1752765056600,-290.14090412,0.00020082,2]
[372795483,1752765056610,-460.0,0.00020082,2]
[372795485,1752765056619,-460.0,0.00020082,2]
[372795487,1752765056630,-460.0,0.00020082,2]
[372795489,1752765056639,-3110.26,0.00020082,2]
[372795491,1752765056649,-460.0,0.00020082,2]
[372795493,1752765056659,-495.25,0.00020083,2]
[372795495,1752765056668,-1328.67,0.00020083,2]
[372795497,1752765056677,-2293.05,0.00020083,2]
[372795498,1752765056687,-460.0,0.00020083,2]
[372795499,1752765056696,-2090.37,0.00020083,2]
[372795500,1752765056706,-1246.01,0.00020083,2]
[372795501,1752765056718,-460.0,0.00020084,2]
[372795502,1752765056727,-460.0,0.00020084,2]
[372795503,1752765056737,-460.0,0.00020084,2]
[372795504,1752765056747,-460.0,0.00020084,2]
[372795505,1752765056756,-4088.1679559,0.00020132,2]
[372795506,1752765056765,-437.78817027,0.00020187,2]
[372795507,1752765056775,-594.306202,0.00020187,2]
[372795508,1752765056785,-184.0,0.00020216,3]
[372795510,1752765056794,-371.0,0.00020224,2]
[372795512,1752765056804,-168.0,0.00020236,2]
[372795514,1752765056814,-1000.0,0.00020296,2]
[372795516,1752765056824,-1000.0,0.00020296,2]
[372795518,1752765056833,-573.18,0.00020354,2]
[372795520,1752765056844,-3565.14,0.00020354,2]
[372795522,1752765056853,-460.0,0.00020354,2]
[372795524,1752765056863,-494.71,0.00020354,2]
[372795526,1752765056873,-460.0,0.00020354,2]
[372795528,1752765056882,-2523.44,0.00020354,2]
[372795529,1752765056891,-1798.7,0.00020354,2]
[372795531,1752765056900,-626.96,0.00020354,2]
[372795533,1752765056909,-460.0,0.00020354,2]
[372795535,1752765056918,-460.0,0.00020354,2]
[372795537,1752765056928,-1969.0,0.00020354,2]
[372795539,1752765056938,-487.99,0.00020354,2]
[372795541,1752765056947,-1290.34,0.00020354,2]
[372795543,1752765056956,-1366.78,0.00020354,2]
[372795545,1752765056968,-400.27225244,0.00020354,2]
[372795547,1752765056980,-1222.62,0.00020354,2]
[372795549,1752765056989,-460.0,0.00020354,2]
[372795551,1752765056999,-460.0,0.00020354,2]
[372795553,1752765057008,-460.0,0.00020355,2]
[372795565,1752765057117,-4279.38,0.00020355,2]
[372795567,1752765057127,-1326.6,0.00020355,2]
[372795569,1752765057136,-499.36,0.00020355,2]
[372795571,1752765057146,-460.0,0.00020356,2]
[372795573,1752765057155,-460.0,0.00020356,2]
[372795575,1752765057164,-481.2,0.00020356,2]
[372795577,1752765057174,-522.01,0.00020356,2]
[372795579,1752765057183,-3110.26,0.00020356,2]
[372795581,1752765057192,-460.0,0.00020356,2]
[372795583,1752765057201,-495.25,0.00020357,2]
[372795585,1752765057214,-1328.67,0.00020357,2]
[372795587,1752765057223,-2293.05,0.00020357,2]
[372795589,1752765057232,-460.0,0.00020357,2]
[372795590,1752765057242,-2090.37,0.00020357,2]
[372795592,1752765057251,-1246.01,0.00020357,2]
[372795594,1752765057260,-460.0,0.00020358,2]
[372795596,1752765057270,-460.0,0.00020358,2]
[372795598,1752765057279,-460.0,0.00020358,2]
[372795600,1752765057289,-460.0,0.00020358,2]
[372795602,1752765057297,-155.77,0.00020359,2]
[372795604,1752765057306,-513.81040375,0.00020379,2]
[372795606,1752765057316,-501.92052317,0.00020379,2]
[372795608,1752765057326,-8833.26437907,0.00020383,3]
[372795610,1752765057335,-168.0,0.00020439,2]
[372795612,1752765057345,-371.0,0.00020457,2]
[372795614,1752765057354,-2487.89057565,0.0002046,2]
[372795615,1752765057363,-1500.0,0.00020468,2]
[372795617,1752765057372,-660.0,0.0002053,2]
[372795619,1752765057382,-151.0,0.0002057,2]
[372795621,1752765057392,-25000.0,0.0002057,2]
[372795623,1752765057401,-184.0,0.00020603,3]
[372795625,1752765057411,-267.89,0.00020606,2]
[372795627,1752765057420,-573.18,0.00020628,2]
[372795629,1752765057430,-3565.14,0.00020628,2]
[372795631,1752765057439,-460.0,0.00020628,2]
[372795633,1752765057449,-494.71,0.00020628,2]
[372795635,1752765057459,-460.0,0.00020628,2]
[372795637,1752765057470,-2523.44,0.00020628,2]
[372795639,1752765057480,-1798.7,0.00020628,2]
[372795641,1752765057490,-626.96,0.00020628,2]
[372795643,1752765057499,-585.95684403,0.00020628,2]
[372795645,1752765057508,-460.0,0.00020628,2]
[372795647,1752765057518,-1969.0,0.00020628,2]
[372795649,1752765057527,-487.99,0.00020628,2]
[372795650,1752765057536,-1290.34,0.00020628,2]
[372795652,1752765057545,-1366.78,0.00020628,2]
[372795654,1752765057555,-1222.62,0.00020628,2]
[372795656,1752765057564,-460.0,0.00020628,2]
[372795658,1752765057574,-460.0,0.00020628,2]
[372795660,1752765057583,-460.0,0.00020629,2]
[372795662,1752765057593,-4279.38,0.00020629,2]
[372795664,1752765057602,-1326.6,0.00020629,2]
[372795666,1752765057612,-460.0,0.0002063,2]
[372795668,1752765057621,-460.0,0.0002063,2]
[372795670,1752765057632,-3110.26,0.0002063,2]
[372795672,1752765057642,-601.61,0.0002063,2]
[372795674,1752765057652,-495.25,0.00020631,2]
[372795675,1752765057662,-1328.67,0.00020631,2]
[372795676,1752765057672,-2293.05,0.00020631,2]
[372795677,1752765057681,-433.06,0.00020631,2]
[372795678,1752765057691,-2090.37,0.00020631,2]
[372795679,1752765057701,-1246.01,0.00020631,2]
[372795680,1752765057712,-460.0,0.00020632,2]
[372795681,1752765057722,-460.0,0.00020632,2]
[372795683,1752765057731,-460.0,0.00020632,2]
[372795685,1752765057740,-460.0,0.00020632,2]
[372795687,1752765057750,-522.01,0.00020658,2]
[372795688,1752765057759,-1371.480125,0.00020659,2]
[372795690,1752765057769,-1371.480125,0.00020659,2]
[372795692,1752765057779,-306.007601,0.00020659,2]
[372795695,1752765057788,-306.007601,0.00020659,2]
[372795697,1752765057798,-243.624583,0.00020659,3]
[372795699,1752765057808,-476.16111942,0.0002066,3]
[372795701,1752765057818,-12607.95677342,0.0002066,3]
[372795703,1752765057829,-214.44804168,0.0002066,3]
[372795705,1752765057838,-168.0,0.00020679,2]
[372795707,1752765057848,-8833.26437907,0.00020693,3]
[372795709,1752765057857,-323.35842337,0.000207,2]
[372795711,1752765057867,-500.0,0.00020844,2]
[372795713,1752765057876,-1399.51193304,0.00020844,2]
[372795715,1752765057886,-168.0,0.00020852,2]
[372795717,1752765057896,-573.18,0.00020902,2]
[372795719,1752765057907,-3565.14,0.00020902,2]
[372795721,1752765057916,-601.92,0.00020902,2]
[372795723,1752765057926,-494.71,0.00020902,2]
[372795725,1752765057936,-460.0,0.00020902,2]
[372795727,1752765057946,-2523.44,0.00020902,2]
[372795729,1752765057955,-1798.7,0.00020902,2]
[372795731,1752765057965,-626.96,0.00020902,2]
[372795732,1752765057978,-460.0,0.00020902,2]
[372795734,1752765057988,-1969.0,0.00020902,2]
[372795737,1752765057998,-487.99,0.00020902,2]
[372795739,1752765058007,-1290.34,0.00020902,2]
[372795741,1752765058018,-1366.78,0.00020902,2]
[372795742,1752765058027,-1222.62,0.00020902,2]
[372795744,1752765058037,-170.69,0.00020902,2]
[372795747,1752765058048,-460.0,0.00020902,2]
[372795748,1752765058057,-188.832589,0.00020903,2]
[372795750,1752765058067,-188.832589,0.00020903,2]
[372795753,1752765058081,-207.398537,0.00020903,2]
[372795754,1752765058092,-207.398537,0.00020903,2]
[372795756,1752765058105,-460.0,0.00020903,2]
[372795758,1752765058115,-976.242001,0.00020903,2]
[372795760,1752765058125,-976.242001,0.00020903,2]
[372795762,1752765058135,-4279.38,0.00020903,2]
[372795764,1752765058144,-1326.6,0.00020903,2]
[372795766,1752765058153,-460.0,0.00020904,2]
[372795768,1752765058162,-359.48183714,0.00020904,2]
[372795770,1752765058171,-3110.26,0.00020904,2]
[372795772,1752765058181,-495.25,0.00020905,2]
[372795774,1752765058190,-1328.67,0.00020905,2]
[372795776,1752765058200,-2293.05,0.00020905,2]
[372795778,1752765058209,-2090.37,0.00020905,2]
[372795780,1752765058220,-1246.01,0.00020905,2]
[372795782,1752765058230,-460.0,0.00020906,2]
[372795784,1752765058240,-460.0,0.00020906,2]
[372795786,1752765058249,-460.0,0.00020906,2]
[372795788,1752765058259,-522.01,0.0002096,2]
[372795790,1752765058269,-522.01,0.0002096,2]
[372795792,1752765058278,-522.01,0.0002096,2]
[372795794,1752765058287,-522.01,0.0002096,2]
[372795796,1752765058297,-522.19,0.0002096,2]
[372795798,1752765058306,-800.0,0.00020961,2]
[372795800,1752765058316,-371.0,0.0002098,2]
[372795802,1752765058326,-243.624583,0.00020986,2]
[372795804,1752765058335,-184.0,0.0002099,4]
[372795806,1752765058347,-8833.26437907,0.00021003,4]
[372795808,1752765058356,-500.0,0.00021016,2]
[372795810,1752765058366,-151.0,0.00021026,2]
[372795812,1752765058375,-371.0,0.0002106,2]
[372795814,1752765058385,-760.0,0.00021078,2]
[372795816,1752765058394,-2136.12704046,0.00021079,2]
[372795818,1752765058408,-151.0,0.00021118,2]
[372795820,1752765058417,-25000.0,0.00021118,2]
[372795822,1752765058426,-243.624583,0.00021141,4]
[372795824,1752765058435,-181.74,0.00021142,2]
[372795826,1752765058445,-783.243,0.00021163,2]
[372795828,1752765058454,-573.18,0.00021176,2]
[372795830,1752765058465,-3565.14,0.00021176,2]
[372795832,1752765058474,-4279.38,0.00021176,2]
[372795834,1752765058483,-494.71,0.00021176,2]
[372795836,1752765058493,-460.0,0.00021176,2]
[372795838,1752765058502,-2523.44,0.00021176,2]
[372795840,1752765058511,-1326.6,0.00021176,2]
[372795842,1752765058520,-1798.7,0.00021176,2]
[372795844,1752765058529,-626.96,0.00021176,2]
[372795846,1752765058538,-460.0,0.00021176,2]
[372795847,1752765058547,-1969.0,0.00021176,2]
[372795850,1752765058557,-487.99,0.00021176,2]
[372795852,1752765058566,-1290.34,0.00021176,2]
[372795854,1752765058576,-1366.78,0.00021176,2]
[372795855,1752765058585,-1222.62,0.00021176,2]
[372795857,1752765058594,-460.0,0.00021176,2]
[372795859,1752765058604,-371.0,0.00021177,2]
[372795861,1752765058614,-460.0,0.00021178,2]
[372795863,1752765058624,-3110.26,0.00021178,2]
[372795865,1752765058633,-495.25,0.00021179,2]
[372795868,1752765058643,-1328.67,0.00021179,2]
[372795870,1752765058653,-2293.05,0.00021179,2]
[372795871,1752765058662,-2090.37,0.00021179,2]
[372795874,1752765058672,-1246.01,0.00021179,2]
[372795875,1752765058681,-460.0,0.0002118,2]
[372795877,1752765058691,-460.0,0.0002118,2]
[372795879,1752765058700,-460.0,0.0002118,2]
[372795881,1752765058710,-647.0,0.00021203,2]
[372795883,1752765058719,-2155.0,0.00021203,2]
[372795885,1752765058729,-968.0,0.00021203,2]
[372795887,1752765058738,-407.0,0.00021203,2]
[372795889,1752765058749,-414.376,0.00021203,2]
[372795891,1752765058757,-371.0,0.00021259,2]
[372795893,1752765058767,-371.0,0.00021275,2]
[372795895,1752765058777,-168.0,0.00021286,2]
[372795897,1752765058787,-8833.26437907,0.00021314,5]
[372795899,1752765058796,-500.0,0.00021363,2]
[372795901,1752765058806,-184.0,0.00021376,4]
[372795903,1752765058815,-215.0738,0.00021391,2]
[372795905,1752765058825,-371.0,0.00021392,2]
[372795907,1752765058834,-150.0,0.00021399,2]
[372795909,1752765058844,-150.0,0.00021399,2]
[372795911,1752765058853,-150.0,0.00021399,2]
[372795913,1752765058865,-150.0,0.00021399,2]
[372795915,1752765058875,-150.0,0.00021399,2]
[372795925,1752765058967,-175.982,0.00021399,2]
[372795927,1752765058986,-573.18,0.0002145,2]
[372795929,1752765058997,-3565.14,0.0002145,2]
[372795932,1752765059007,-4279.38,0.0002145,2]
[372795934,1752765059019,-494.71,0.0002145,2]
[372795935,1752765059028,-460.0,0.0002145,2]
[372795936,1752765059038,-2523.44,0.0002145,2]
[372795937,1752765059048,-1326.6,0.0002145,2]
[372795938,1752765059058,-1798.7,0.0002145,2]
[372795939,1752765059068,-626.96,0.0002145,2]
[372795940,1752765059078,-460.0,0.0002145,2]
[372795941,1752765059087,-1969.0,0.0002145,2]
[372795942,1752765059097,-487.99,0.0002145,2]
[372795943,1752765059107,-1290.34,0.0002145,2]
[372795944,1752765059116,-1366.78,0.0002145,2]
[372795945,1752765059125,-1222.62,0.0002145,2]
[372795946,1752765059135,-460.0,0.0002145,2]
[372795947,1752765059144,-460.0,0.00021452,2]
[372795948,1752765059153,-3110.26,0.00021452,2]
[372795949,1752765059162,-495.25,0.00021453,2]
[372795950,1752765059172,-1328.67,0.00021453,2]
[372795951,1752765059181,-2293.05,0.00021453,2]
[372795952,1752765059191,-2090.37,0.00021453,2]
[372795953,1752765059200,-1246.01,0.00021453,2]
[372795954,1752765059215,-264.8,0.00021454,2]
[372795955,1752765059225,-460.0,0.00021454,2]
[372795956,1752765059234,-455.7,0.00021454,2]
[372795957,1752765059243,-160.0,0.00021455,3]
[372795958,1752765059253,-168.0,0.00021461,2]
[372795959,1752765059263,-371.0,0.00021466,2]
[372795960,1752765059272,-371.0,0.00021482,2]
[372795961,1752765059281,-1595.7,0.000215,2]
[372795962,1752765059290,-371.0,0.00021536,2]
[372795963,1752765059300,-823.0,0.00021553,2]
[372795964,1752765059309,-371.0,0.00021561,2]
[372795965,1752765059318,-168.0,0.00021581,2]
[372795966,1752765059327,-2136.12704044,0.00021596,2]
[372795967,1752765059337,-371.0,0.00021607,2]
[372795968,1752765059347,-2487.89057565,0.00021624,2]
[372795970,1752765059357,-8833.26437907,0.00021624,5]
[372795971,1752765059366,-860.0,0.00021626,2]
[372795972,1752765059376,-567.32925396,0.00021636,5]
[372795974,1752765059386,-168.0,0.0002164,2]
[372795976,1752765059395,-178.6,0.00021665,2]
[372795978,1752765059405,-243.624583,0.00021666,3]
[372795980,1752765059415,-151.52356667,0.00021666,2]
[372795982,1752765059424,-25000.0,0.00021666,2]
[372795984,1752765059434,-250.0,0.00021695,2]
[372795986,1752765059444,-573.18,0.00021724,2]
[372795988,1752765059453,-3565.14,0.00021724,2]
[372795991,1752765059466,-4279.38,0.00021724,2]
[372795993,1752765059476,-494.71,0.00021724,2]
[372795995,1752765059486,-460.0,0.00021724,2]
[372795997,1752765059496,-2523.44,0.00021724,2]
[372795999,1752765059505,-1326.6,0.00021724,2]
[372796001,1752765059515,-1798.7,0.00021724,2]
[372796003,1752765059525,-626.96,0.00021724,2]
[372796005,1752765059535,-460.0,0.00021724,2]
[372796007,1752765059544,-1969.0,0.00021724,2]
[372796009,1752765059554,-487.99,0.00021724,2]
[372796011,1752765059564,-1290.34,0.00021724,2]
[372796013,1752765059574,-1366.78,0.00021724,2]
[372796015,1752765059584,-1222.62,0.00021724,2]
[372796017,1752765059593,-460.0,0.00021724,2]
[372796019,1752765059603,-575.23,0.00021726,2]
[372796021,1752765059612,-3110.26,0.00021726,2]
[372796023,1752765059622,-495.25,0.00021727,2]
[372796025,1752765059632,-1328.67,0.00021727,2]
[372796027,1752765059641,-2293.05,0.00021727,2]
[372796029,1752765059651,-2090.37,0.00021727,2]
[372796031,1752765059660,-1246.01,0.00021727,2]
[372796033,1752765059671,-364.72,0.00021728,2]
[372796035,1752765059681,-371.0,0.00021738,2]
[372796037,1752765059690,-184.0,0.00021763,4]
[372796039,1752765059700,-3036.14865524,0.00021766,2]
[372796041,1752765059710,-800.0,0.00021773,2]
[372796043,1752765059721,-178.6,0.00021777,2]
[372796045,1752765059731,-500.0,0.000218,2]
[372796047,1752765059741,-168.0,0.00021822,2]
[372796049,1752765059751,-178.6,0.00021888,2]
[372796051,1752765059761,-207.7,0.00021926,2]
[372796053,1752765059771,-8833.26437907,0.00021934,6]
[372796055,1752765059780,-243.624583,0.00021965,5]
[372796057,1752765059790,-371.0,0.00021968,2]
[372796059,1752765059800,-573.18,0.00021998,2]
[372796061,1752765059810,-3565.14,0.00021998,2]
[372796064,1752765059826,-4279.38,0.00021998,2]
[372796067,1752765059844,-494.71,0.00021998,2]
[372796069,1752765059858,-246.78,0.00021998,2]
[372796072,1752765059875,-2523.44,0.00021998,2]
[372796075,1752765059892,-1326.6,0.00021998,2]
[372796077,1752765059908,-1798.7,0.00021998,2]
[372796080,1752765059926,-626.96,0.00021998,2]
[372796083,1752765059942,-460.0,0.00021998,2]
[372796085,1752765059957,-1969.0,0.00021998,2]
[372796088,1752765059976,-487.99,0.00021998,2]
[372796090,1752765059992,-1290.34,0.00021998,2]
[372796093,1752765060003,-1366.78,0.00021998,2]
[372796095,1752765060020,-1222.62,0.00021998,2]
[372796098,1752765060035,-460.0,0.00021998,2]
[372796101,1752765060054,-447.67811266,0.00022,2]
[372796104,1752765060073,-6791.25,0.00022,7]
[372796106,1752765060090,-1371.480125,0.00022,7]
[372796108,1752765060101,-1371.480125,0.00022,7]
[372796111,1752765060115,-306.007601,0.00022,7]
[372796114,1752765060135,-306.007601,0.00022,7]
[372796116,1752765060148,-243.624583,0.00022,15]
[372796119,1752765060162,-476.16111942,0.00022,7]
[372796121,1752765060177,-12607.95677342,0.00022,7]
[372796124,1752765060189,-214.44804168,0.00022,7]
[372796126,1752765060203,-167.0,0.00022,2]
[372796129,1752765060221,-3110.26,0.00022,2]
[372796131,1752765060235,-495.25,0.00022001,2]
[372796134,1752765060250,-1328.67,0.00022001,2]
[372796136,1752765060264,-2293.05,0.00022001,2]
[372796138,1752765060278,-2090.37,0.00022001,2]
[372796141,1752765060292,-1246.01,0.00022001,2]
[372796143,1752765060305,-3036.14865524,0.00022007,2]
[372796146,1752765060319,-6423.77885601,0.00022014,2]
[372796148,1752765060335,-1088.321288,0.00022039,8]
[372796151,1752765060348,-188.832589,0.00022039,7]
[372796153,1752765060362,-188.832589,0.00022039,7]
[372796155,1752765060375,-207.398537,0.00022039,7]
[372796158,1752765060389,-207.398537,0.00022039,7]
[372796160,1752765060401,-976.242001,0.00022039,7]
[372796162,1752765060416,-976.242001,0.00022039,7]
[372796165,1752765060429,-800.0,0.00022057,2]
[372796167,1752765060444,-600.0,0.0002209,2]
[372796169,1752765060457,-2136.12704044,0.00022114,2]
[372796172,1752765060474,-160.0,0.00022123,4]
[372796174,1752765060488,-184.0,0.0002215,5]
[372796176,1752765060500,-960.0,0.00022174,2]
[372796180,1752765060525,-243.624583,0.00022176,6]
[372796184,1752765060549,-1782.81694071,0.00022181,2]
[372796187,1752765060572,-167.0,0.00022192,7]
[372796190,1752765060591,-168.0,0.00022198,2]
[372796192,1752765060609,-243.624583,0.00022223,4]
[372796195,1752765060626,-8833.26437907,0.00022245,6]
[372796198,1752765060642,-243.624583,0.0002225,2]
[372796200,1752765060658,-573.18,0.00022272,2]
[372796203,1752765060673,-3565.14,0.00022272,2]
[372796205,1752765060688,-4279.38,0.00022272,2]
[372796208,1752765060702,-494.71,0.00022272,2]
[372796210,1752765060717,-2523.44,0.00022272,2]
[372796212,1752765060732,-1326.6,0.00022272,2]
[372796215,1752765060747,-1798.7,0.00022272,2]
[372796218,1752765060762,-626.96,0.00022272,2]